bitfinex/quotes_ETHUSD_20250115
["timestamp","ask_amount","ask_price","bid_price","bid_amount"]
[1736901716641,0.44872347,3224.4,3224.1,0.1695669]
[1736901716809,0.44872347,3224.4,3224.3,0.03749707]
[1736901717009,0.44872347,3224.4,3224.2,0.03748583]
[1736901717303,0.44872347,3224.4,3224.3,0.03623592]
[1736901717545,0.44872347,3224.4,3224.1,0.1695669]
[1736901717708,0.44872347,3224.4,3224.2,0.03623592]
[1736901717910,0.44872347,3224.4,3224.1,0.1695669]
[1736901718118,0.44872347,3224.4,3224.2,0.03624716]
[1736901718427,0.44872347,3224.4,3224.1,0.1695669]
[1736901718628,0.44872347,3224.4,3224.3,0.03650002]
[1736901718829,0.44872347,3224.4,3224.1,0.1695669]
[1736901719220,0.44872347,3224.4,3224.2,0.03650002]
[1736901719658,0.44872347,3224.4,3224.1,0.1695669]
[1736901719818,0.44872347,3224.4,3224.3,0.03650002]
[1736901720018,0.44872347,3224.4,3224.1,0.1695669]
[1736901720439,0.44872347,3224.4,3224.2,0.03647192]
[1736901720856,0.8133,3224.9,3224.1,0.1695669]
[1736901721067,2.9260467,3224.7,3224.3,0.03647192]
[1736901721247,3.8133,3224.3,3224.1,0.1695669]
[1736901721431,1.28406967,3224.2,3224.1,0.1695669]
[1736901721630,3.8133,3224.3,3224.1,0.1695669]
[1736901721842,5.9260467,3224.7,3224.1,0.2036186]
[1736901722027,0.8055,3224.6,3224.1,0.2036186]
[1736901722227,0.8055,3224.6,3224.1,0.1695669]
[1736901722520,6.90673,3224.6,3224.1,0.1695669]
[1736901722722,0.98327767,3224.5,3224.2,0.0340517]
[1736901722924,0.98327767,3224.5,3224.1,0.1695669]
[1736901723350,0.98327767,3224.5,3224.2,0.0340517]
[1736901723536,0.98327767,3224.5,3224.1,0.1695669]
[1736901723746,0.98327767,3224.5,3224.2,0.0340517]
[1736901724060,0.78900077,3224.4,3224.1,0.1695669]
[1736901724254,0.78900077,3224.4,3224.3,0.0340517]
[1736901724448,0.78900077,3224.4,3224.1,0.1695669]
[1736901724759,0.78900077,3224.4,3224.2,0.0340517]
[1736901724941,0.78900077,3224.4,3224.1,0.1695669]
[1736901725265,0.78900077,3224.4,3224.2,0.0340517]
[1736901725468,3.8055,3224.6,3224.2,0.0340517]
[1736901725762,3.8055,3224.6,3224.1,0.1695669]
[1736901726663,3.8055,3224.6,3224.2,0.0340517]
[1736901726966,0.198,3224.6,3224.1,4.0418669]
[1736901727161,0.198,3224.6,3224.2,0.03405732]
[1736901727362,0.198,3224.6,3224.2,0.35732002]
[1736901727661,0.8055,3224.8,3224.3,0.03405732]
[1736901727851,1.0035,3224.8,3224.3,0.03405732]
[1736901728051,1.0035,3224.8,3224.2,0.35732002]
[1736901728362,0.8055,3224.6,3224.1,0.1695669]
[1736901728563,3.0,3224.4,3224.2,0.03385502]
[1736901728729,5.9260467,3224.4,3224.1,0.1695669]
[1736901729827,9.0274067,3224.4,3224.1,0.1695669]
[1736901730029,0.90274067,3224.3,3224.1,0.1695669]
[1736901730966,3.0,3224.5,3224.2,0.034018]
[1736901731176,3.0,3224.5,3224.1,0.1695669]
[1736901731334,3.0,3224.5,3224.2,0.034018]
[1736901731536,3.0,3224.5,3224.1,0.1695669]
[1736901731735,3.0,3224.5,3224.2,0.034018]
[1736901731934,3.0,3224.5,3224.1,0.1695669]
[1736901732235,0.198,3224.6,3224.2,0.034018]
[1736901732665,0.198,3224.6,3224.1,0.1695669]
[1736901732976,0.89095467,3224.6,3224.1,0.1695669]
[1736901733234,0.89095467,3224.6,3224.2,0.03399552]
[1736901733597,0.89095467,3224.6,3224.1,0.1695669]
[1736901733777,0.198,3224.6,3224.3,0.03399552]
[1736901733985,0.198,3224.6,3224.1,0.1695669]
[1736901734179,0.198,3224.6,3224.2,0.03399552]
[1736901734403,0.198,3224.6,3224.1,0.20058248]
[1736901734567,0.8055,3224.8,3224.3,0.03399552]
[1736901734764,3.198,3224.8,3224.1,0.20058009]
[1736901734988,0.198,3224.8,3224.2,0.03391122]
[1736901735479,4.92556148,3225.6,3224.2,0.03391122]
[1736901735480,1.0035,3225.6,3224.4,0.7707]
[1736901735658,5.41883013,3225.8,3224.9,3.10083]
[1736901735878,5.41883013,3225.8,3224.8,0.7707]
[1736901736071,3.0,3225.1,3224.2,0.7707]
[1736901736274,2.9260467,3224.9,3224.2,0.7707]
[1736901738289,0.67315467,3225.1,3224.2,3.87222]
[1736901738454,3.0,3225.1,3224.3,3.10143]
[1736901738651,3.0,3225.1,3224.2,0.7707]
[1736901739489,3.0,3225.1,3224.2,3.87224]
[1736901740351,3.0,3225.1,3224.2,0.7707]
[1736901740551,0.7602,3224.7,3224.1,0.1695669]
[1736901740790,3.9582,3224.7,3224.1,0.1695669]
[1736901741156,0.198,3224.7,3224.1,0.1695669]
[1736901742503,3.0,3224.5,3224.1,0.1695669]
[1736901742802,6.10129,3224.5,3224.1,0.1695669]
[1736901743009,0.90273367,3224.4,3224.1,0.1695669]
[1736901743175,0.90273367,3224.4,3224.2,0.03047064]
[1736901743375,0.90273367,3224.4,3224.1,0.1695669]
[1736901743572,0.90273367,3224.4,3224.2,0.03047064]
[1736901743892,3.0,3224.2,3224.1,0.1695669]
[1736901744050,0.90273367,3224.4,3224.1,0.1695669]
[1736901744256,0.198,3224.7,3224.2,0.7825]
[1736901744257,3.29908,3224.7,3224.2,0.7825]
[1736901744477,3.29908,3224.7,3224.2,0.81297064]
[1736901744675,0.198,3224.7,3224.2,0.81297064]
[1736901744900,3.10059,3225.2,3224.2,0.81297064]
[1736901744901,0.7602,3225.4,3224.2,0.84398512]
[1736901745110,1.62981517,3225.7,3225.0,0.7825]
[1736901745313,1.32564843,3225.5,3225.4,3.10039]
[1736901745512,1.32564843,3225.5,3225.4,4.192929]
[1736901745726,1.32564843,3225.5,3225.4,4.22347831]
[1736901745934,4.52181707,3226.1,3225.4,1.12308831]
[1736901746081,3.0,3225.8,3225.4,0.03054931]
[1736901746499,6.7861867,3225.9,3225.1,0.7825]
[1736901746709,3.6862467,3225.9,3225.1,0.7825]
[1736901746920,3.10012,3225.7,3225.2,0.03012233]
[1736901747243,3.2360587,3225.6,3225.2,0.03012233]
[1736901747399,3.10029,3225.5,3225.2,0.03012233]
[1736901747739,3.10029,3225.5,3224.8,0.7825]
[1736901748015,3.0,3225.2,3224.8,0.7825]
[1736901748318,3.0,3225.2,3224.9,0.02959427]
[1736901748517,3.0,3225.3,3224.5,0.7825]
[1736901748694,3.0,3225.3,3225.0,0.02967851]
[1736901748899,0.610047,3225.2,3224.5,0.7825]
[1736901749427,0.610047,3225.2,3224.6,0.02967851]
[1736901749589,3.610047,3225.2,3224.6,0.02967851]
[1736901750994,0.197,3226.0,3224.7,0.7825]
[1736901751193,3.1230467,3226.0,3224.8,0.02985265]
[1736901751399,3.09995,3225.9,3224.9,3.10077]
[1736901751582,6.2228667,3226.0,3225.1,0.7825]
[1736901751789,3.0,3225.9,3225.1,0.7825]
[1736901752028,3.0,3225.9,3225.2,0.02985265]
[1736901753835,3.10029,3225.5,3224.8,0.7767]
[1736901754131,3.7068467,3225.7,3224.8,0.7767]
[1736901754334,3.0,3225.6,3224.9,0.02971783]
[1736901754534,3.0,3225.3,3224.9,0.02971783]
[1736901754698,6.10054,3225.3,3224.9,0.02971783]
[1736901754905,6.10054,3225.3,3224.5,0.7767]
[1736901755113,6.10054,3225.3,3225.0,0.02971783]
[1736901755312,6.10054,3225.3,3224.5,0.7767]
[1736901755518,7.10126884,3225.3,3225.1,0.02971783]
[1736901755718,7.10126884,3225.3,3224.5,0.7767]
[1736901755913,4.00072884,3225.3,3224.5,0.7767]
[1736901756137,3.0,3225.3,3224.6,0.02971783]
[1736901756737,3.0,3225.4,3224.6,0.02971783]
[1736901757348,3.0,3225.4,3224.5,3.87791]
[1736901757641,3.0,3225.4,3224.6,0.02971783]
[1736901757941,0.197,3225.5,3224.6,3.52156061]
[1736901758142,3.7068467,3226.0,3224.6,0.45149012]
[1736901758440,0.197,3225.9,3225.2,0.7767]
[1736901758609,3.0,3226.0,3225.2,0.7767]
[1736901758805,3.0,3226.0,3225.3,0.0298751]
[1736901759237,3.629674,3226.0,3225.3,0.0298751]
[1736901759443,6.5557207,3226.0,3225.3,0.0298751]
[1736901759643,9.6555707,3226.0,3225.2,0.7767]
[1736901760206,0.7808,3226.3,3225.3,3.13141393]
[1736901760407,3.88035,3226.3,3225.4,0.8065751]
[1736901760722,6.8063967,3226.3,3225.4,0.8065751]
[1736901760924,3.09971,3226.1,3225.4,0.8065751]
[1736901761321,3.0,3226.2,3225.4,0.8065751]
[1736901761532,0.98063867,3226.1,3225.4,0.8065751]
[1736901761724,0.98063867,3226.1,3225.4,0.7767]
[1736901761927,0.98063867,3226.1,3225.5,0.02973468]
[1736901762833,6.09993,3225.9,3225.5,0.02973468]
[1736901763148,6.7068467,3225.7,3225.5,0.02973468]
[1736901763344,0.98068767,3225.6,3224.8,0.7767]
[1736901763523,3.0,3225.5,3224.8,0.7767]
[1736901763720,0.98068767,3225.6,3224.9,0.02966729]
[1736901764045,3.0,3225.6,3224.8,0.7767]
[1736901764447,3.0,3225.6,3224.9,0.02966168]
[1736901764856,3.0,3225.6,3225.0,0.7767]
[1736901765319,3.0,3225.6,3225.1,0.02983016]
[1736901767523,3.09994,3225.9,3225.2,0.769]
[1736901767524,0.197,3225.9,3225.2,0.769]
[1736901767924,0.7535,3226.3,3225.4,0.769]
[1736901768123,0.36795467,3226.2,3225.4,0.769]
[1736901768315,0.36795467,3226.2,3225.5,0.02983578]
[1736901768722,0.36795467,3226.2,3225.4,3.86936]
[1736901768930,0.36795467,3226.2,3225.6,0.02935839]
[1736901769137,0.36795467,3226.2,3225.4,3.86936]
[1736901769331,3.0,3226.3,3225.8,0.769]
[1736901769861,2.9260467,3226.8,3226.0,0.769]
[1736901770062,0.197,3226.8,3226.0,3.86879]
[1736901770220,0.7535,3227.2,3226.0,0.769]
[1736901770534,0.31382949,3227.3,3226.2,0.769]
[1736901770734,0.39933762,3227.2,3226.2,0.769]
[1736901770934,0.39933762,3227.2,3226.3,3.8976194]
[1736901771337,0.31382949,3227.3,3226.3,3.8976194]
[1736901771531,0.31382949,3227.3,3226.3,3.8476194]
[1736901771836,3.0,3227.2,3226.3,3.8476194]
[1736901772245,3.41238949,3227.3,3226.3,3.8476194]
[1736901772449,3.0,3227.2,3226.3,3.8476194]
[1736901772823,3.31382949,3227.3,3226.4,3.09941]
[1736901773025,4.34270711,3227.3,3226.4,3.09941]
[1736901773559,4.34270711,3227.3,3226.5,0.02828275]
[1736901774659,7.44126711,3227.3,3226.5,0.02828275]
[1736901775162,7.44126711,3227.3,3226.3,0.769]
[1736901775321,7.44126711,3227.3,3226.6,0.02828275]
[1736901775518,1.13198138,3227.2,3226.3,0.769]
[1736901775721,6.0247967,3227.1,3226.7,0.02828275]
[1736901775937,6.0247967,3227.1,3226.3,0.769]
[1736901776155,2.9260467,3227.1,3226.8,0.02822663]
[1736901776460,7.07185146,3227.1,3226.3,0.769]
[1736901776860,7.07185146,3227.1,3226.4,0.02822663]
[1736901777253,3.97309146,3227.1,3226.4,0.02822663]
[1736901778299,7.07184146,3227.1,3226.4,0.02822663]
[1736901778830,7.07184146,3227.1,3226.3,0.769]
[1736901779025,0.70718415,3227.0,3226.5,0.02823785]
[1736901779226,0.70718415,3227.0,3226.3,0.769]
[1736901779444,0.70718415,3227.0,3226.4,0.02729509]
[1736901780259,2.9260467,3227.1,3226.4,0.02729509]
[1736901781272,2.9260467,3227.1,3226.3,0.769]
[1736901781447,2.9260467,3227.1,3226.5,0.02733999]
[1736901781643,2.9260467,3227.1,3226.3,0.769]
[1736901781850,2.9260467,3227.1,3226.6,0.02733999]
[1736901782059,2.9260467,3227.1,3226.7,0.7573]
[1736901782268,2.9260467,3227.1,3226.7,0.78443232]
[1736901782449,0.29260467,3227.0,3226.7,0.78443232]
[1736901782652,3.29260467,3227.0,3226.7,0.78443232]
[1736901782850,3.29260467,3227.0,3226.7,0.7573]
[1736901783392,3.0,3227.0,3226.7,0.7573]
[1736901783561,0.199,3227.5,3226.7,3.85643]
[1736901783760,2.9260467,3227.7,3226.8,3.13000922]
[1736901784092,2.9260467,3227.7,3226.9,0.7522]
[1736901784254,3.0,3227.6,3226.9,3.85114]
[1736901785833,3.0,3227.6,3226.9,0.7522]
[1736901786099,3.0,3227.6,3227.3,0.7522]
[1736901786389,3.90438,3228.3,3227.3,0.7522]
[1736901786390,2.9260467,3228.0,3227.3,0.7522]
[1736901786690,3.0,3227.9,3227.3,0.7522]
[1736901787077,2.9260467,3228.3,3227.4,0.7522]
[1736901787281,4.36862056,3228.6,3227.6,3.09825]
[1736901787479,3.74658506,3228.5,3227.7,0.78317961]
[1736901787667,3.09751,3228.4,3227.7,0.7522]
[1736901787995,3.0,3228.2,3227.7,0.7522]
[1736901788165,6.09806,3227.9,3227.0,0.7522]
[1736901788366,3.0,3227.6,3227.0,0.7522]
[1736901789694,7.80745867,3227.6,3227.0,0.7522]
[1736901790714,7.00072867,3227.6,3227.0,0.7522]
[1736901791378,7.00072867,3227.6,3225.7,0.199]
[1736901791379,2.9260467,3227.4,3225.8,0.7522]
[1736901791579,2.9260467,3227.0,3226.2,0.7522]
[1736901791785,6.31758137,3227.0,3226.2,0.7522]
[1736901792000,3.21865137,3227.0,3226.2,0.7522]
[1736901792294,3.21865137,3227.0,3226.3,0.03099284]
[1736901792466,2.9260467,3227.0,3226.2,3.85181]
[1736901794173,3.0,3227.1,3226.2,0.7522]
[1736901794398,3.0,3227.1,3226.3,3.0995]
[1736901794607,3.0,3227.1,3226.2,0.7522]
[1736901794804,3.7327467,3227.3,3226.2,0.7522]
[1736901794805,3.09891,3227.0,3226.2,0.7522]
[1736901795810,3.09897,3226.9,3226.2,0.7522]
[1736901796396,2.9260467,3226.7,3226.2,0.7522]
[1736901796910,3.09934,3226.5,3225.4,3.10031]
[1736901797112,3.09934,3226.5,3225.5,4.209601]
[1736901797298,6.8108267,3226.7,3225.7,0.7993]
[1736901797611,3.09935,3226.5,3225.7,0.7993]
[1736901797811,3.0,3226.6,3225.7,0.7993]
[1736901798108,3.98108067,3226.6,3225.7,0.7993]
[1736901798281,7.08034067,3226.6,3225.7,0.7993]
[1736901799304,3.98108067,3226.6,3225.7,3.93038722]
[1736901799613,3.98108067,3226.6,3225.7,3.89939]
[1736901800099,3.0,3226.6,3225.8,0.7993]
[1736901801042,3.1220467,3227.0,3226.1,3.09969]
[1736901801221,3.1220467,3227.0,3226.2,0.7993]
[1736901801427,3.0,3226.9,3226.2,0.7993]
[1736901803450,3.196,3227.0,3226.2,0.7993]
[1736901803614,3.196,3227.0,3226.3,0.7993]
[1736901804348,3.1220467,3227.0,3226.3,0.7993]
[1736901804549,7.02106167,3226.9,3226.3,0.7993]
[1736901804863,3.0,3226.6,3226.3,0.7993]
[1736901807247,3.0,3226.6,3225.7,0.7993]
[1736901807555,3.09934,3226.5,3225.7,0.7993]
[1736901807750,3.0,3226.4,3225.7,0.7993]
[1736901809376,3.609934,3226.4,3225.7,0.7993]
[1736901810651,6.709364,3226.4,3225.7,0.7993]
[1736901810954,2.9260467,3226.1,3225.7,0.7993]
[1736901811254,6.0257767,3226.1,3225.7,0.7993]
[1736901812057,2.9260467,3226.1,3225.7,0.7993]
[1736901812746,3.88515,3226.3,3225.7,0.7993]
[1736901812949,0.74211307,3226.2,3225.7,0.7993]
[1736901813684,3.0,3226.4,3225.7,0.7993]
[1736901813983,3.0,3226.5,3225.9,0.7993]
[1736901814192,6.2210167,3226.9,3225.9,0.7993]
[1736901814389,3.0988,3227.1,3226.2,3.0996]
[1736901814589,3.0988,3227.1,3226.3,0.8302916]
[1736901814770,3.0,3227.0,3226.3,0.8302916]
[1736901814979,3.1220467,3227.5,3226.6,0.7993]
[1736901815136,1.29290332,3227.7,3226.7,0.03098815]
[1736901815475,0.50730332,3227.7,3227.0,3.89813]
[1736901815692,2.9260467,3227.8,3227.0,3.89813]
[1736901815912,2.9260467,3227.8,3227.1,0.0309849]
[1736901816170,2.9260467,3227.8,3227.2,0.7993]
[1736901816481,3.0,3227.7,3227.2,0.7993]
[1736901818340,2.9260467,3227.8,3227.2,0.7993]
[1736901819861,2.9260467,3228.1,3227.2,0.7993]
[1736901820060,3.68726347,3228.1,3227.2,0.7993]
[1736901820795,3.0,3228.0,3227.1,0.7993]
[1736901820994,3.0,3228.0,3227.5,0.7993]
[1736901821165,2.9260467,3228.1,3227.5,0.7993]
[1736901822394,3.0,3228.2,3227.5,0.7993]
[1736901822563,5.9260467,3228.2,3227.5,0.7993]
[1736901822764,6.84801137,3228.2,3227.5,0.7993]
[1736901824911,3.09783,3228.1,3227.5,0.7993]
[1736901825202,6.84801137,3228.2,3227.5,0.7993]
[1736901826780,9.94571137,3228.2,3227.5,0.7993]
[1736901827265,6.84801137,3228.2,3227.5,0.7993]
[1736901827891,9.94572137,3228.2,3227.5,0.7993]
[1736901829177,0.99457214,3228.1,3227.5,0.7993]
[1736901829373,4.09238214,3228.1,3227.5,0.7993]
[1736901830602,2.9260467,3227.6,3227.2,0.808]
[1736901830925,3.0,3227.4,3226.9,0.808]
[1736901832180,3.193,3227.5,3226.9,0.808]
[1736901832507,2.9260467,3227.3,3226.9,0.808]
[1736901832671,6.0246267,3227.3,3226.9,0.808]
[1736901832871,6.64638937,3227.3,3226.9,0.808]
[1736901833604,3.0,3227.2,3226.6,0.808]
[1736901836006,2.9260467,3227.3,3226.6,0.83898806]
[1736901836311,0.193,3227.5,3226.7,0.808]
[1736901836511,5.9260467,3227.6,3226.9,0.808]
[1736901836729,5.9260467,3227.6,3227.0,0.808]
[1736901836730,2.9260467,3227.6,3227.0,0.808]
[1736901836915,6.0240667,3227.9,3227.0,0.808]
[1736901837631,3.0,3227.8,3227.0,0.808]
[1736901837828,2.9260467,3227.6,3227.0,0.808]
[1736901838008,3.0,3227.5,3227.0,0.808]
[1736901838328,0.90243167,3227.4,3227.0,0.808]
[1736901839310,3.0,3227.5,3227.0,0.808]
[1736901840986,2.9260467,3227.6,3227.0,0.808]
[1736901841206,2.9260467,3227.9,3227.2,0.808]
[1736901841417,2.9260467,3228.2,3227.4,0.808]
[1736901841910,3.0,3228.1,3227.4,0.808]
[1736901842102,2.9260467,3227.9,3227.4,0.808]
[1736901843783,2.9260467,3227.9,3226.6,0.7513]
[1736901843784,3.0984,3227.5,3226.6,0.7513]
[1736901843979,2.9260467,3227.2,3226.6,0.7513]
[1736901844219,6.0250267,3226.9,3225.9,0.7513]
[1736901844985,6.0250267,3226.9,3226.1,0.7513]
[1736901845517,6.70686937,3226.9,3226.1,0.7513]
[1736901846402,2.9260467,3226.9,3226.1,0.7513]
[1736901846597,2.9260467,3226.9,3226.2,0.7513]
[1736901847536,2.9260467,3226.9,3226.2,0.78229391]
[1736901847732,2.9260467,3226.9,3226.2,0.7513]
[1736901850226,6.0250267,3226.9,3226.2,0.7513]
[1736901850414,0.60250267,3226.8,3226.2,0.7513]
[1736901850845,2.9260467,3226.6,3226.2,0.7513]
[1736901851540,6.0253067,3226.6,3226.2,0.7513]
[1736901853289,2.9260467,3226.6,3226.2,0.7513]
[1736901858133,6.0252867,3226.6,3226.2,0.7513]
[1736901858334,0.60252867,3226.5,3226.2,0.7513]
[1736901861006,2.9260467,3226.6,3226.2,0.7513]
[1736901861204,3.0,3226.8,3226.2,0.7513]
[1736901863928,6.09905,3226.8,3226.2,0.7513]
[1736901864313,2.9260467,3226.6,3226.2,0.7513]
[1736901864508,6.0252967,3226.6,3226.2,0.7513]
[1736901864833,0.60252967,3226.5,3226.2,0.7513]
[1736901867239,6.0255767,3226.3,3225.3,3.73520345]
[1736901867441,6.0255767,3226.3,3225.4,0.7916]
[1736901867610,2.9260467,3226.0,3225.4,0.7916]
[1736901873764,2.9260467,3225.7,3225.4,0.7916]
[1736901874851,3.29174,3226.1,3225.4,0.7916]
[1736901875053,6.2552207,3226.0,3225.4,0.7916]
[1736901881510,0.7568,3226.3,3225.5,0.03100091]
[1736901881511,2.9260467,3226.3,3225.5,0.03100091]
[1736901881710,1.66648953,3226.9,3225.8,3.09998]
[1736901881711,7.08616623,3226.9,3225.8,3.09998]
[1736901882031,7.08616623,3226.9,3226.0,0.7983]
[1736901882229,8.24572743,3226.9,3226.0,0.7983]
[1736901882530,3.0,3226.8,3226.0,0.7983]
[1736901883428,3.0,3226.8,3225.6,0.7983]
[1736901883755,3.0,3226.8,3226.2,0.7983]
[1736901884044,3.0,3226.8,3226.2,0.82929306]
[1736901884850,3.0,3226.8,3226.2,0.7983]
[1736901887259,3.0,3226.8,3226.3,0.7767]
[1736901887453,1.68458953,3227.8,3226.4,0.03099312]
[1736901887617,2.9260467,3227.7,3226.8,0.7767]
[1736901887949,0.86908953,3227.8,3227.4,3.09841]
[1736901888255,4.54062807,3228.1,3227.5,3.87504]
[1736901888581,2.9260467,3228.3,3227.5,3.87504]
[1736901888715,3.0,3228.2,3227.5,3.87504]
[1736901889123,2.9260467,3228.4,3227.6,0.7767]
[1736901889533,3.0,3228.3,3227.6,0.7767]
[1736901890157,2.9260467,3228.4,3227.6,3.87495]
[1736901890665,3.0,3228.3,3227.7,0.7767]
[1736901891648,3.28932,3228.6,3227.8,0.7767]
[1736901891649,0.192,3228.6,3227.8,0.7767]
[1736901892861,3.192,3228.6,3227.8,0.7767]
[1736901893849,2.9260467,3228.4,3227.8,0.7767]
[1736901895694,6.0235967,3228.4,3227.8,0.7767]
[1736901895893,0.60235967,3228.3,3227.8,0.7767]
[1736901896097,3.09762,3228.3,3227.8,0.7767]
[1736901898196,2.9260467,3228.4,3227.8,0.7767]
[1736901900572,3.0,3228.0,3227.4,0.7767]
[1736901900767,2.9260467,3227.8,3227.4,0.7767]
[1736901901110,3.0,3228.0,3227.4,0.7767]
[1736901901300,3.59260467,3228.0,3227.4,0.7767]
[1736901902770,3.0,3227.7,3227.4,0.7767]
[1736901902975,3.0,3227.7,3226.8,0.7767]
[1736901904011,2.9260467,3227.2,3226.8,0.7767]
[1736901904976,2.9260467,3226.9,3226.2,0.8199]
[1736901905208,0.29260467,3226.8,3226.2,0.8199]
[1736901905687,2.9260467,3226.9,3226.2,0.8199]
[1736901909788,3.0,3226.8,3226.2,0.8199]
[1736901909993,3.0,3227.0,3225.9,0.8199]
[1736901910206,3.0,3227.0,3226.6,3.9191]
[1736901910509,3.0,3227.0,3226.6,4.31101]
[1736901910681,3.0,3227.0,3226.6,1.21181]
[1736901910887,2.9260467,3226.8,3226.1,0.8199]
[1736901911083,2.9260467,3226.5,3226.1,0.8199]
[1736901911315,2.9260467,3226.2,3226.1,0.8199]
[1736901911498,2.9260467,3226.2,3225.8,0.8199]
[1736901911801,2.9260467,3226.5,3225.8,3.91984]
[1736901912184,2.9260467,3226.5,3225.8,0.8199]
[1736901912518,2.9260467,3226.5,3225.8,4.311886]
[1736901912722,2.9260467,3226.5,3225.8,1.211906]
[1736901912935,2.9260467,3226.5,3225.8,0.8199]
[1736901913596,2.9260467,3225.9,3225.1,0.8199]
[1736901914423,0.7683,3226.2,3225.4,0.8199]
[1736901914424,2.9260467,3226.2,3225.4,0.8199]
[1736901914743,2.9260467,3226.2,3225.5,3.10028]
[1736901916144,0.192,3226.3,3225.7,0.8199]
[1736901916287,5.9260467,3226.5,3225.7,0.8199]
[1736901917825,5.9260467,3226.5,3225.7,3.91999]
[1736901918516,5.9260467,3226.5,3225.7,0.8199]
[1736901918727,2.9260467,3226.2,3225.7,0.8199]
[1736901921030,2.9260467,3226.2,3225.2,0.84860202]
[1736901921187,0.192,3226.7,3225.9,3.09989]
[1736901921386,2.9260467,3226.5,3226.0,0.8176]
[1736901921598,3.0,3226.1,3225.5,0.8176]
[1736901921851,0.59260467,3226.0,3225.5,0.8176]
[1736901923844,2.9260467,3225.9,3224.9,0.8176]
[1736901923993,6.92422,3225.8,3224.9,0.8176]
[1736901925531,3.1003,3225.5,3224.9,0.8176]
[1736901925734,2.9260467,3225.3,3224.6,0.8176]
[1736901926243,2.9260467,3225.3,3224.6,3.91874]
[1736901926814,2.9260467,3225.3,3224.6,0.8176]
[1736901927340,2.9260467,3225.0,3224.6,0.8176]
[1736901930052,2.9260467,3225.0,3224.2,0.8176]
[1736901930233,2.9260467,3225.0,3224.2,3.91912]
[1736901930438,3.52871037,3225.0,3224.2,3.91912]
[1736901930743,2.9260467,3224.7,3224.2,0.8176]
[1736901931348,3.0,3224.6,3224.1,0.1695669]
[1736901937401,3.0,3224.6,3224.2,0.02741838]
[1736901937565,3.0,3224.6,3224.1,0.1695669]
[1736901937756,0.59260467,3224.5,3224.2,0.02741838]
[1736901937952,0.59260467,3224.5,3224.1,0.1695669]
[1736901938279,2.9260467,3224.4,3224.2,0.02741838]
[1736901938651,2.9260467,3224.4,3224.1,0.1695669]
[1736901938851,2.9260467,3224.4,3224.3,0.02741838]
[1736901939353,4.40211184,3224.4,3224.1,0.1695669]
[1736901939551,7.40211184,3224.4,3224.2,0.02741838]
[1736901939783,6.57791184,3224.4,3224.1,0.1695669]
[1736901940001,5.9260467,3224.4,3224.2,0.02741838]
[1736901940494,5.9260467,3224.4,3224.1,0.1695669]
[1736901940666,5.9260467,3224.4,3224.3,0.02741838]
[1736901940869,5.9260467,3224.4,3224.1,0.1695669]
[1736901941185,3.0,3224.4,3224.1,0.1695669]
[1736901941392,3.0,3224.4,3224.2,0.02741838]
[1736901941890,3.0,3224.4,3224.1,0.1695669]
[1736901942094,3.0,3224.4,3224.3,0.02741838]
[1736901942254,3.0,3224.4,3224.1,0.1695669]
[1736901942455,3.0,3224.4,3224.3,0.02741838]
[1736901942678,3.0,3224.4,3224.1,0.1695669]
[1736901942679,6.2260467,3224.4,3224.1,0.1695669]
[1736901943190,6.2260467,3224.4,3224.2,0.02741838]
[1736901943392,6.2260467,3224.4,3224.1,0.1695669]
[1736901943554,6.2260467,3224.4,3224.2,0.02741838]
[1736901943776,6.2260467,3224.4,3224.1,0.1695669]
[1736901944117,6.2260467,3224.4,3224.2,0.02741838]
[1736901944483,6.2260467,3224.4,3224.1,0.1695669]
[1736901944708,6.2260467,3224.4,3224.3,0.02741838]
[1736901945027,6.2260467,3224.4,3224.1,0.1695669]
[1736901945203,5.9260467,3224.4,3224.1,0.1695669]
[1736901945403,5.9260467,3224.4,3224.2,0.02741838]
[1736901945578,5.9260467,3224.4,3224.1,0.1695669]
[1736901946013,5.9260467,3224.4,3224.2,0.02741838]
[1736901946325,5.9260467,3224.4,3224.1,0.1695669]
[1736901946815,5.9260467,3224.4,3224.2,0.02741838]
[1736901947218,2.9260467,3224.4,3224.2,0.02741838]
[1736901947426,2.9260467,3224.4,3224.1,0.1695669]
[1736901947599,2.9260467,3224.4,3224.3,0.02892924]
[1736901947928,2.9260467,3224.4,3224.1,0.1695669]
[1736901948084,2.9260467,3224.4,3224.3,0.02892924]
[1736901948286,2.9260467,3224.4,3224.1,0.1695669]
[1736901948487,2.9260467,3224.4,3224.3,0.02892924]
[1736901948709,2.9260467,3224.4,3224.1,0.1695669]
[1736901948917,2.9260467,3224.4,3224.3,0.02892924]
[1736901949121,2.9260467,3224.4,3224.1,0.1695669]
[1736901949315,2.9260467,3224.4,3224.3,0.028918]
[1736901949525,2.9260467,3224.4,3224.1,0.1695669]
[1736901949726,2.9260467,3224.4,3224.3,0.028918]
[1736901949930,2.9260467,3224.4,3224.1,0.1695669]
[1736901950220,2.9260467,3224.4,3224.2,0.028918]
[1736901950718,2.9260467,3224.4,3224.1,0.1695669]
[1736901951222,2.9260467,3224.4,3224.2,0.028918]
[1736901951647,0.60266367,3225.0,3224.2,0.8152]
[1736901951967,2.9260467,3224.6,3224.3,0.028918]
[1736901952169,3.8317,3224.5,3224.3,0.028918]
[1736901952337,6.93296,3224.5,3224.1,0.1695669]
[1736901952661,5.9260467,3224.3,3224.2,0.02887866]
[1736901953017,5.9260467,3224.3,3224.1,0.1695669]
[1736901953329,6.91194737,3224.3,3224.2,0.02887866]
[1736901953547,6.91194737,3224.3,3224.1,0.1695669]
[1736901953548,3.0,3224.2,3224.1,0.1695669]
[1736901955057,4.72494737,3224.3,3224.1,0.1695669]
[1736901955231,2.9260467,3224.3,3224.1,0.1695669]
[1736901955660,5.9260467,3224.3,3224.2,0.02887866]
[1736901956018,5.9260467,3224.3,3224.1,0.1695669]
[1736901956334,5.9260467,3224.3,3224.2,0.02887866]
[1736901956853,9.0275267,3224.3,3224.2,0.02887866]
[1736901957014,3.0,3224.2,3224.1,0.1695669]